Workbook

Sheet main
B2: Creating a Credit Card Payoff Spreadsheet
B4: Month | C4: Payment | D4: Interest | E4: Balance | G4: Product Price | H4: 1699
B5: =_xlfn.SEQUENCE(ROUND(H7,0)) -> 1 | C5: =$H$6 -> 160 | D5: =E5*$H$5 -> 292.41 | E5: =H4-C5 -> 1539 | G5: Interest Rate (Yearly) | H5: 0.19
B6: 2 | C6: =$H$6 -> 160 | D6: =E6*$H$5 -> 317.5679 | E6: =E5+D5-C6 -> 1671.41 | G6: Monthly Payment | H6: 160
B7: 3 | C7: 160 | D7: 287.1679 | E7: =E6-C7 -> 1511.41 | G7: No of Payments | H7: =ROUNDUP(NPER(H5/12,-H6,H4),0) -> 12
B8: 4 | C8: 160 | D8: 256.7679 | E8: 1351.41
B9: 5 | C9: 160 | D9: 226.3679 | E9: 1191.41
B10: 6 | C10: 160 | D10: 195.9679 | E10: 1031.41
B11: 7 | C11: 160 | D11: 165.5679 | E11: 871.41
B12: 8 | C12: 160 | D12: 135.1679 | E12: 711.41
B13: 9 | C13: 160 | D13: 104.7679 | E13: 551.41
B14: 10 | C14: 160 | D14: 74.3679 | E14: 391.41
B15: 11 | C15: 160 | D15: 43.9679 | E15: 231.41
B16: 12 | C16: 160 | D16: 13.5679 | E16: 71.41

Sheet Manual
B2: Manually Creating a Credit Card Payoff Spreadsheet
B4: Month | C4: Payment | D4: Interest | E4: Balance | G4: Product Price | H4: 1699
B5: =_xlfn.SEQUENCE(ROUND(H7,0)) -> 1 | C5: =$H$6 -> 180 | D5: =ROUND((E5+C5)*$H$5/12,0) -> 27 | E5: =H4-C5 -> 1519 | G5: Interest Rate (Yearly) | H5: 0.19
B6: 2 | C6: =$H$6 -> 180 | D6: =ROUND((E6+C6)*$H$5/12,0) -> 24 | E6: =E5+D5-C6 -> 1366 | G6: Monthly Payment | H6: 180
B7: 3 | C7: 180 | D7: 22 | E7: =E6+D6-C7 -> 1210 | G7: No of Payments | H7: =ROUNDUP(NPER(H5/12,-H6,H4),0) -> 11
B8: 4 | C8: 180 | D8: 20 | E8: 1052
B9: 5 | C9: 180 | D9: 17 | E9: 892
B10: 6 | C10: 180 | D10: 14 | E10: 729
B11: 7 | C11: 180 | D11: 12 | E11: 563
B12: 8 | C12: 180 | D12: 9 | E12: 395
B13: 9 | C13: 180 | D13: 6 | E13: 224
B14: 10 | C14: 180 | D14: 4 | E14: 50
B15: 11 | C15: 180 | D15: 1 | E15: -126
C16: 180 | D16: -2 | E16: -305
C17: 180 | D17: -5 | E17: -487
C18: 180 | D18: -8 | E18: -672
C19: 180 | D19: -11 | E19: -860
C20: 180 | D20: -14 | E20: =E19+D19-C20 -> -1051
C21: 180 | D21: -17 | E21: -1245
C22: 180 | D22: -20 | E22: -1442
C23: 180 | D23: -23 | E23: -1642
C24: 180 | D24: -26 | E24: -1845
C25: =$H$6 -> 180 | D25: -29 | E25: =E24-C25 -> -2025
C26: 180 | D26: -32 | E26: -2205
C27: 180 | D27: -35 | E27: -2385
C28: 180 | D28: -38 | E28: -2565
C29: 180 | D29: -41 | E29: =E28-C29 -> -2745
C30: 180 | D30: -43 | E30: -2925
C31: 180 | D31: -46 | E31: -3105
C32: 180 | D32: -49 | E32: -3285
C33: 180 | D33: -52 | E33: -3465
C34: 180 | D34: -55 | E34: -3645
C35: 180 | D35: -58 | E35: -3825
C36: 180 | D36: -61 | E36: -4005
C37: 180 | D37: -63 | E37: -4185
C38: 180 | D38: -66 | E38: -4365
C39: 180 | D39: -69 | E39: -4545
C40: 180 | D40: -72 | E40: -4725
C41: 180 | D41: -75 | E41: -4905
C42: 180 | D42: -78 | E42: -5085
C43: 180 | D43: -81 | E43: -5265
C44: 180 | D44: -83 | E44: -5445
C45: 180 | D45: -86 | E45: -5625
C46: 180 | D46: -89 | E46: -5805
C47: 180 | D47: -92 | E47: -5985
C48: 180 | D48: -95 | E48: -6165
C49: 180 | D49: -98 | E49: -6345
C50: 180 | D50: -100 | E50: -6525
C51: 180 | D51: -103 | E51: -6705
C52: 180 | D52: -106 | E52: -6885
C53: 180 | D53: -109 | E53: -7065

Sheet Microsoft Template
B2: Credit Card
B3: Payoff Calculator
B5: Balance Owed | C5: 1699 | E5: Months to payoff (Minimum) | H5: =IFERROR((ROUNDUP(NPER(C6/12,-C8,C5,0),0)),"N/A") -> 11
B6: Interest Rate | C6: 0.19 | E6: Months to payoff (Proposed) | H6: =IFERROR(ROUNDUP(NPER(C6/12,-C9,C5,0),0),"N/A") -> 11
B8: Minimum Monthly Payment | C8: 180 | E8: Total interest (Minimum) | H8: =IFERROR(((NPER(C6/12,-C8,C5,0)*C8)-C5),"N/A") -> 155.7478316
B9: Proposed Monthly Payment | C9: 180 | E9: Total interest (Proposed) | H9: =IFERROR(((NPER(C6/12,-C9,C5,0)*C9)-C5),"N/A") -> 155.7478316
B11: Months to Payoff | G11: Total Interest
